[Event "RUS-chT Women Rapid 2019"]
[Site "Sochi"]
[Date "2019.10.19"]
[Round "8.1"]
[White "Pogonina, Natalija"]
[Black "Lysenko, Margarita"]
[Result "1-0"]
[ECO "A62"]
[WhiteElo "2479"]
[BlackElo "2166"]
[Annotator "ChessBase"]
[PlyCount "135"]
[EventDate "2019.10.18"]
[EventType "swiss"]
[EventCountry "RUS"]
[SourceTitle "playchess.com"]
[Source "ChessBase"]
[SourceQuality "1"]
[TimeControl "900+10"]

1. d4 {[%emt 0:00:00]} Nf6 {[%emt 0:00:00]} 2. c4 {[%emt 0:00:00]} e6 {[%emt 0:00:00]} 3. g3 {[%emt 0:00:00]} c5 {[%emt 0:00:00]} 4. d5 {[%emt 0:00:00]} exd5 {[%emt 0:00:00]} 5. cxd5 {[%emt 0:00:02]} d6 {[%emt 0:00:00]} 6. Nc3 {[%emt 0:00:04]} g6 {[%emt 0:00:00]} 7. Bg2 {[%emt 0:00:03]} Bg7 {[%emt 0:00:01]} 8. Nf3 {[%emt 0:00:03]} O-O {[%emt 0:00:02]} 9. O-O {[%emt 0:00:03]} Re8 {[%emt 0:00:02]} 10. Bf4 {[%emt 0:00:04]} Bf5 {[%emt 0:00:05]} 11. Nd2 {[%emt 0:01:23]} Nh5 {[%emt 0:00:07]} 12. Be3 {[%emt 0:00:05]} Nd7 {[%emt 0:00:20]} 13. Nc4 {[%emt 0:00:29]} Nb6 {[%emt 0:02:06]} 14. Nxb6 {[%emt 0:01:47]} Qxb6 {[%emt 0:00:22]} 15. Qd2 {[%emt 0:00:17]} Nf6 {[%emt 0:04:10]} 16. f3 {[%emt 0:03:51]} Rxe3 {[%emt 0:03:54]} 17. Qxe3 {[%emt 0:00:02]} Ng4 {[%emt 0:00:35]} 18. Qd2 {[%emt 0:00:22]} Bd4+ {[%emt 0:00:22]} 19. Kh1 {[%emt 0:00:02]} Ne3 {[%emt 0:00:39]} 20. Rfc1 {[%emt 0:01:21]} Re8 {[%emt 0:01:40]} 21. g4 {[%emt 0:04:53]} Nc4 {[%emt 0:03:16]} 22. Qe1 {[%emt 0:00:12]} Bd3 {[%emt 0:00:24]} 23. Ne4 {[%emt 0:00:45]} Bxe4 {[%emt 0:00:11]} 24. fxe4 {[%emt 0:00:11]} Qxb2 {[%emt 0:00:28]} 25. Rab1 {[%emt 0:00:31]} Qxa2 {[%emt 0:00:02]} 26. Rxb7 {[%emt 0:00:21]} Ne5 {[%emt 0:00:19]} 27. h3 {[%emt 0:00:44]} Qa3 {[%emt 0:00:13]} 28. Rcb1 {[%emt 0:00:53]} Qe3 {[%emt 0:00:02]} 29. R7b3 {[%emt 0:00:24]} Qf2 {[%emt 0:00:16]} 30. e3 {[%emt 0:00:29]} Qxe1+ {[%emt 0:00:09]} 31. Rxe1 {[%emt 0:00:01]} c4 {[%emt 0:00:02]} 32. exd4 {[%emt 0:00:09]} cxb3 {[%emt 0:00:01]} 33. dxe5 {[%emt 0:00:02]} dxe5 {[%emt 0:00:08]} 34. Bf1 {[%emt 0:00:05]} a5 {[%emt 0:00:04]} 35. Rb1 {[%emt 0:00:20]} Rb8 {[%emt 0:00:05]} 36. Bc4 {[%emt 0:00:15]} b2 {[%emt 0:00:16]} 37. Ba2 {[%emt 0:00:13]} Kf8 {[%emt 0:00:09]} 38. d6 {[%emt 0:00:14]} Ke8 {[%emt 0:00:04]} 39. Kg2 {[%emt 0:00:18]} Kd7 {[%emt 0:00:08]} 40. Rd1 {[%emt 0:00:02]} Rb6 {[%emt 0:00:07]} 41. Kf3 {[%emt 0:00:02]} Rxd6 {[%emt 0:00:45]} 42. Rxd6+ {[%emt 0:00:02]} Kxd6 {[%emt 0:00:01]} 43. Ke3 {[%emt 0:00:07]} Kc5 {[%emt 0:00:21]} 44. Kd3 {[%emt 0:00:08]} a4 {[%emt 0:00:10]} 45. g5 {[%emt 0:00:13]} a3 {[%emt 0:00:10]} 46. Kc3 {[%emt 0:00:13]} Kb5 {[%emt 0:00:11]} 47. h4 {[%emt 0:00:25]} Kc5 {[%emt 0:00:04]} 48. Bb1 {[%emt 0:00:14]} Kd6 {[%emt 0:00:13]} 49. Kb4 {[%emt 0:00:08]} a2 {[%emt 0:00:09]} 50. Bxa2 {[%emt 0:00:01]} f5 {[%emt 0:00:01]} 51. gxf6 {[%emt 0:00:22]} h6 {[%emt 0:00:22]} 52. Kc3 {[%emt 0:00:05]} b1=Q {[%emt 0:00:07]} 53. Bxb1 {[%emt 0:00:01]} Ke6 {[%emt 0:00:00]} 54. Kd3 {[%emt 0:00:07]} Kxf6 {[%emt 0:00:02]} 55. Ke3 {[%emt 0:00:10]} g5 {[%emt 0:00:05]} 56. Kf3 {[%emt 0:00:09]} h5 {[%emt 0:00:14]} 57. hxg5+ {[%emt 0:00:07]} Kxg5 {[%emt 0:00:01]} 58. Bd3 {[%emt 0:00:02]} Kh4 {[%emt 0:00:06]} 59. Bf1 {[%emt 0:00:03]} Kg5 {[%emt 0:00:05]} 60. Kg3 {[%emt 0:00:02]} h4+ {[%emt 0:00:01]} 61. Kf3 {[%emt 0:00:02]} Kh5 {[%emt 0:00:02]} 62. Bh3 {[%emt 0:00:15]} Kg5 {[%emt 0:00:02]} 63. Ke3 {[%emt 0:00:32]} Kh5 {[%emt 0:00:07]} 64. Kd3 {[%emt 0:00:01]} Kg5 {[%emt 0:00:01]} 65. Kc4 {[%emt 0:00:01]} Kf4 {[%emt 0:00:01]} 66. Kd5 {[%emt 0:00:02]} Kg3 {[%emt 0:00:05]} 67. Bd7 {[%emt 0:00:09]} Kf4 {[%emt 0:00:04]} 68. Bf5 {[%emt 0:00:02]} 1-0

[Event "RUS-chT Women Rapid 2019"]
[Site "Sochi"]
[Date "2019.10.19"]
[Round "8.2"]
[White "Sudakova, Irina"]
[Black "Girya, Olga"]
[Result "0-1"]
[ECO "B13"]
[WhiteElo "2259"]
[BlackElo "2476"]
[Annotator "RC"]
[PlyCount "82"]
[EventDate "2019.10.18"]
[EventType "swiss"]
[EventCountry "RUS"]
[SourceTitle "playchess.com"]
[Source "ChessBase"]
[SourceQuality "1"]
[TimeControl "900+10"]

1. e4 {[%emt 0:00:00]} c6 {[%emt 0:00:00]} 2. d4 {[%emt 0:00:00]} d5 {[%emt 0:00:00]} 3. exd5 {[%emt 0:00:00]} cxd5 {[%emt 0:00:00]} 4. Bd3 {[%emt 0:00:00]} Nc6 {[%emt 0:00:00]} 5. c3 {[%emt 0:00:00]} Nf6 {[%emt 0:00:00]} 6. Bf4 {[%emt 0:00:03]} Bg4 {[%emt 0:00:02]} 7. Qb3 {[%emt 0:00:05]} Qd7 {[%emt 0:00:02]} 8. Nd2 {[%emt 0:00:13]} e6 {[%emt 0:00:00]} 9. Ngf3 {[%emt 0:00:10]} Bd6 {[%emt 0:00:02]} 10. Bxd6 {[%emt 0:00:06]} Qxd6 {[%emt 0:00:01]} 11. O-O {[%emt 0:00:13]} O-O {[%emt 0:00:03]} 12. Rfe1 {[%emt 0:00:16]} Nd7 {[%emt 0:00:56]} 13. h3 {[%emt 0:03:04]} Bxf3 {[%emt 0:00:48]} 14. Nxf3 {[%emt 0:00:03]} Rab8 {[%emt 0:00:16]} 15. Qc2 {[%emt 0:00:12]} h6 {[%emt 0:00:09]} 16. Qe2 {[%emt 0:00:08]} a6 {[%emt 0:00:27]} 17. a4 {[%emt 0:00:21]} Rfc8 {[%emt 0:00:47]} 18. Ne5 {[%emt 0:00:34]} Ncxe5 {[%emt 0:01:15]} 19. dxe5 {[%emt 0:00:15]} Qe7 {[%emt 0:02:17]} 20. Qg4 {[%emt 0:03:00]} Qg5 {[%emt 0:00:43]} 21. Qxg5 {[%emt 0:00:40]} hxg5 {[%emt 0:00:01]} 22. Kh2 {[%emt 0:03:13]} b5 {[%emt 0:02:26]} 23. axb5 {[%emt 0:01:48]} axb5 {[%emt 0:00:02]} 24. Ra7 {[%emt 0:00:07]} Nc5 {[%emt 0:00:02]} 25. Bc2 {[%emt 0:01:08]} b4 {[%emt 0:00:40]} 26. Re3 {[%emt 0:01:53]} bxc3 {[%emt 0:01:34]} 27. Rxc3 {[%emt 0:00:34]} d4 {[%emt 0:00:07]} 28. Rf3 {[%emt 0:00:13]} Rb7 {[%emt 0:01:40]} 29. Rxb7 {[%emt 0:01:01]} Nxb7 {[%emt 0:00:02]} 30. Bd3 {[%emt 0:00:01]} Nc5 {[%emt 0:00:15]} 31. b4 {[%emt 0:00:09]} Nd7 {[%emt 0:00:42]} 32. Ba6 {[%emt 0:00:28]} Rc3 {[%emt 0:00:55]} 33. Rd3 {[%emt 0:00:17]} Rxd3 {[%emt 0:00:07]} 34. Bxd3 {[%emt 0:00:01]} Nxe5 {[%emt 0:00:01]} 35. Bb1 {[%emt 0:00:22]} Kf8 {[%emt 0:01:13]} 36. g3 {[%emt 0:00:07]} d3 {[%emt 0:00:35]} 37. Kg2 {[%emt 0:00:05]} d2 {[%emt 0:00:21]} 38. Bc2 {[%emt 0:00:02]} Nd3 {[%emt 0:00:01]} 39. Kf1 {[%emt 0:00:09]} Nxb4 {[%emt 0:00:02]} 40. Ba4 {[%emt 0:00:28]} Nd5 {[%emt 0:00:03]} 41. Bd1 {[%emt 0:00:21]} Nc3 {[%emt 0:00:10]} 0-1

[Event "RUS-chT Women Rapid 2019"]
[Site "Sochi"]
[Date "2019.10.19"]
[Round "8.3"]
[White "Guseva, Marina"]
[Black "Lukina, Aleksandra"]
[Result "1-0"]
[ECO "E63"]
[WhiteElo "2366"]
[BlackElo "2001"]
[Annotator "NA"]
[PlyCount "57"]
[EventDate "2019.10.18"]
[EventType "swiss"]
[EventCountry "RUS"]
[SourceTitle "playchess.com"]
[Source "ChessBase"]
[SourceQuality "1"]
[TimeControl "900+10"]

1. d4 {[%emt 0:00:00]} Nf6 {[%emt 0:00:00]} 2. c4 {[%emt 0:00:00]} g6 {[%emt 0:00:00]} 3. Nf3 {[%emt 0:00:00]} Bg7 {[%emt 0:00:00]} 4. g3 {[%emt 0:00:00]} O-O {[%emt 0:00:00]} 5. Bg2 {[%emt 0:00:00]} d6 {[%emt 0:00:00]} 6. O-O {[%emt 0:00:00]} Nc6 {[%emt 0:00:08]} 7. Nc3 {[%emt 0:00:02]} a6 {[%emt 0:00:04]} 8. e3 {[%emt 0:00:03]} Rb8 {[%emt 0:00:15]} 9. Qe2 {[%emt 0:00:07]} e5 {[%emt 0:00:32]} 10. dxe5 {[%emt 0:00:08]} Nxe5 {[%emt 0:00:28]} 11. Nxe5 {[%emt 0:00:12]} dxe5 {[%emt 0:00:05]} 12. Rd1 {[%emt 0:00:06]} Qe7 {[%emt 0:00:06]} 13. Nd5 {[%emt 0:00:07]} Nxd5 {[%emt 0:00:08]} 14. cxd5 {[%emt 0:00:02]} e4 {[%emt 0:00:39]} 15. h3 {[%emt 0:03:32]} h5 {[%emt 0:00:11]} 16. Qc4 {[%emt 0:00:12]} Re8 {[%emt 0:00:43]} 17. a4 {[%emt 0:01:31]} h4 {[%emt 0:00:24]} 18. g4 {[%emt 0:00:19]} b6 {[%emt 0:02:37]} 19. Bd2 {[%emt 0:03:59]} Bxb2 {[%emt 0:00:22]} 20. Bb4 {[%emt 0:00:02]} b5 {[%emt 0:02:17]} 21. axb5 {[%emt 0:01:11]} axb5 {[%emt 0:00:01]} 22. Qb3 {[%emt 0:00:11]} Qf6 {[%emt 0:00:12]} 23. Ra7 {[%emt 0:01:49]} Be5 {[%emt 0:00:12]} 24. Qc2 {[%emt 0:00:36]} Qg5 {[%emt 0:02:25]} 25. Kh1 {[%emt 0:00:12]} f5 {[%emt 0:00:23]} 26. d6 {[%emt 0:00:27]} cxd6 {[%emt 0:02:34]} 27. Qc7 {[%emt 0:00:20]} Be6 {[%emt 0:00:15]} 28. Qh7+ {[%emt 0:00:27]} Kf8 {[%emt 0:00:07]} 29. Bxd6+ {[%emt 0:00:07]} 1-0

[Event "RUS-chT Women Rapid 2019"]
[Site "Sochi"]
[Date "2019.10.19"]
[Round "8.4"]
[White "Usacheva, Glafira"]
[Black "Kovanova, Baira"]
[Result "0-1"]
[ECO "E16"]
[WhiteElo "1847"]
[BlackElo "2344"]
[Annotator "NA"]
[PlyCount "96"]
[EventDate "2019.10.18"]
[EventType "swiss"]
[EventCountry "RUS"]
[SourceTitle "playchess.com"]
[Source "ChessBase"]
[SourceQuality "1"]
[TimeControl "900+10"]

1. d4 {[%emt 0:00:00]} Nf6 {[%emt 0:00:00]} 2. c4 {[%emt 0:00:00]} e6 {[%emt 0:00:00]} 3. Nf3 {[%emt 0:00:00]} Bb4+ {[%emt 0:00:15]} 4. Bd2 {[%emt 0:00:05]} Qe7 {[%emt 0:00:02]} 5. g3 {[%emt 0:00:35]} Nc6 {[%emt 0:00:04]} 6. Bg2 {[%emt 0:00:28]} d5 {[%emt 0:00:03]} 7. a3 {[%emt 0:00:42]} Bxd2+ {[%emt 0:00:18]} 8. Nbxd2 {[%emt 0:00:02]} O-O {[%emt 0:00:17]} 9. O-O {[%emt 0:00:24]} Rd8 {[%emt 0:00:17]} 10. e3 {[%emt 0:01:07]} Ne4 {[%emt 0:03:28]} 11. Nxe4 {[%emt 0:02:44]} dxe4 {[%emt 0:00:02]} 12. Nd2 {[%emt 0:00:02]} f5 {[%emt 0:00:16]} 13. b4 {[%emt 0:00:08]} Qf6 {[%emt 0:00:54]} 14. Qb3 {[%emt 0:02:48]} Bd7 {[%emt 0:00:30]} 15. Rfd1 {[%emt 0:00:37]} Be8 {[%emt 0:00:06]} 16. c5 {[%emt 0:00:27]} Bh5 {[%emt 0:01:09]} 17. Re1 {[%emt 0:00:17]} Bf7 {[%emt 0:00:06]} 18. b5 {[%emt 0:00:44]} Ne7 {[%emt 0:03:38]} 19. Nc4 {[%emt 0:00:38]} Ng6 {[%emt 0:00:29]} 20. Qc3 {[%emt 0:00:14]} Rd5 {[%emt 0:01:48]} 21. f4 {[%emt 0:01:44]} Rxc5 {[%emt 0:00:46]} 22. Qb4 {[%emt 0:00:41]} Rd5 {[%emt 0:00:04]} 23. Rac1 {[%emt 0:00:17]} Qd8 {[%emt 0:01:22]} 24. Rc2 {[%emt 0:00:24]} Be8 {[%emt 0:00:54]} 25. a4 {[%emt 0:00:06]} c6 {[%emt 0:00:01]} 26. b6 {[%emt 0:01:24]} a5 {[%emt 0:00:52]} 27. Qa3 {[%emt 0:00:25]} Qe7 {[%emt 0:00:16]} 28. Qc1 {[%emt 0:00:49]} c5 {[%emt 0:00:08]} 29. dxc5 {[%emt 0:00:23]} Rxc5 {[%emt 0:00:17]} 30. Ne5 {[%emt 0:00:46]} Rac8 {[%emt 0:00:55]} 31. Nxg6 {[%emt 0:00:12]} hxg6 {[%emt 0:00:00]} 32. Rxc5 {[%emt 0:00:10]} Qxc5 {[%emt 0:00:30]} 33. Qb2 {[%emt 0:00:28]} Bxa4 {[%emt 0:00:09]} 34. Bf1 {[%emt 0:00:23]} Bc6 {[%emt 0:00:11]} 35. Kf2 {[%emt 0:00:14]} Bd5 {[%emt 0:00:01]} 36. Be2 {[%emt 0:00:07]} a4 {[%emt 0:00:19]} 37. Ra1 {[%emt 0:00:01]} Bb3 {[%emt 0:00:05]} 38. Qd2 {[%emt 0:00:27]} Qc3 {[%emt 0:00:19]} 39. Qd7 {[%emt 0:00:11]} Qc6 {[%emt 0:00:08]} 40. Qd4 {[%emt 0:00:05]} Qd5 {[%emt 0:00:04]} 41. Qb4 {[%emt 0:00:17]} Qc5 {[%emt 0:00:03]} 42. Qd2 {[%emt 0:00:06]} Qxb6 {[%emt 0:00:02]} 43. Qd7 {[%emt 0:00:02]} Qc6 {[%emt 0:00:02]} 44. Qd4 {[%emt 0:00:07]} Qc5 {[%emt 0:00:06]} 45. Qd7 {[%emt 0:00:05]} Qc6 {[%emt 0:00:09]} 46. Qd4 {[%emt 0:00:02]} Qd5 {[%emt 0:00:02]} 47. Qb4 {[%emt 0:00:05]} Rc2 {[%emt 0:00:08]} 48. Kf1 {[%emt 0:00:24]} Bc4 {[%emt 0:00:37]} 0-1

[Event "RUS-chT Women Rapid 2019"]
[Site "Sochi"]
[Date "2019.10.19"]
[Round "8.5"]
[White "Voit, Daria"]
[Black "Borisova, Ekaterina"]
[Result "1-0"]
[ECO "D11"]
[WhiteElo "2336"]
[BlackElo "2118"]
[Annotator "NA"]
[PlyCount "91"]
[EventDate "2019.10.18"]
[EventType "swiss"]
[EventCountry "RUS"]
[SourceTitle "playchess.com"]
[Source "ChessBase"]
[SourceQuality "1"]
[TimeControl "900+10"]

1. d4 {[%emt 0:00:00]} d5 {[%emt 0:00:00]} 2. c4 {[%emt 0:00:00]} c6 {[%emt 0:00:00]} 3. Nf3 {[%emt 0:00:00]} Nf6 {[%emt 0:00:00]} 4. e3 {[%emt 0:00:00]} Bg4 {[%emt 0:00:00]} 5. h3 {[%emt 0:00:00]} Bh5 {[%emt 0:00:00]} 6. g4 {[%emt 0:00:05]} Bg6 {[%emt 0:00:00]} 7. Ne5 {[%emt 0:00:01]} Nbd7 {[%emt 0:00:00]} 8. Nxg6 {[%emt 0:00:36]} hxg6 {[%emt 0:00:00]} 9. Bg2 {[%emt 0:00:31]} e6 {[%emt 0:00:49]} 10. Nd2 {[%emt 0:01:13]} Be7 {[%emt 0:00:21]} 11. O-O {[%emt 0:00:10]} g5 {[%emt 0:00:02]} 12. Re1 {[%emt 0:00:08]} Qb6 {[%emt 0:00:15]} 13. Qb3 {[%emt 0:01:34]} O-O {[%emt 0:01:03]} 14. e4 {[%emt 0:03:54]} dxe4 {[%emt 0:00:38]} 15. Nxe4 {[%emt 0:00:02]} Nxe4 {[%emt 0:00:26]} 16. Rxe4 {[%emt 0:00:05]} Bf6 {[%emt 0:01:36]} 17. Be3 {[%emt 0:00:33]} Qa6 {[%emt 0:01:59]} 18. d5 {[%emt 0:00:38]} exd5 {[%emt 0:00:22]} 19. cxd5 {[%emt 0:00:02]} cxd5 {[%emt 0:00:12]} 20. Qxd5 {[%emt 0:01:04]} Nb6 {[%emt 0:00:07]} 21. Qb3 {[%emt 0:00:30]} Rac8 {[%emt 0:01:26]} 22. Rb4 {[%emt 0:01:48]} Qe2 {[%emt 0:01:01]} 23. Bxb7 {[%emt 0:00:32]} Rc7 {[%emt 0:00:53]} 24. Bg2 {[%emt 0:00:13]} Rfc8 {[%emt 0:00:48]} 25. Rb1 {[%emt 0:01:13]} Nd7 {[%emt 0:00:24]} 26. Rb7 {[%emt 0:00:18]} Nf8 {[%emt 0:01:42]} 27. Bd5 {[%emt 0:01:00]} Kh8 {[%emt 0:01:19]} 28. Rxc7 {[%emt 0:01:27]} Rxc7 {[%emt 0:00:01]} 29. Bxf7 {[%emt 0:01:37]} Qf3 {[%emt 0:00:24]} 30. Bd2 {[%emt 0:00:01]} Qe2 {[%emt 0:00:34]} 31. Be3 {[%emt 0:00:30]} Qf3 {[%emt 0:00:14]} 32. Rc1 {[%emt 0:00:11]} Rb7 {[%emt 0:00:32]} 33. Qd5 {[%emt 0:00:08]} Qxd5 {[%emt 0:00:11]} 34. Bxd5 {[%emt 0:00:02]} Rxb2 {[%emt 0:00:08]} 35. Rc8 {[%emt 0:00:07]} Be7 {[%emt 0:00:01]} 36. Bxa7 {[%emt 0:00:09]} Kh7 {[%emt 0:00:11]} 37. Be4+ {[%emt 0:00:10]} Kg8 {[%emt 0:00:06]} 38. Bd4 {[%emt 0:00:05]} Rd2 {[%emt 0:00:15]} 39. Be3 {[%emt 0:00:10]} Rd1+ {[%emt 0:00:05]} 40. Kg2 {[%emt 0:00:01]} Kf7 {[%emt 0:00:02]} 41. Bc2 {[%emt 0:00:10]} Rd7 {[%emt 0:00:12]} 42. a4 {[%emt 0:00:07]} Ne6 {[%emt 0:00:14]} 43. Bb3 {[%emt 0:00:01]} Kf6 {[%emt 0:00:01]} 44. Rc6 {[%emt 0:00:07]} Bd6 {[%emt 0:00:01]} 45. Bxe6 {[%emt 0:00:16]} Kxe6 {[%emt 0:00:02]} 46. Bc5 {[%emt 0:00:06]} 1-0

[Event "RUS-chT Women Rapid 2019"]
[Site "Sochi"]
[Date "2019.10.19"]
[Round "8.6"]
[White "Danilova, Rada"]
[Black "Tomilova, Elena"]
[Result "1/2-1/2"]
[ECO "D10"]
[WhiteElo "1843"]
[BlackElo "2345"]
[Annotator "NA"]
[PlyCount "107"]
[EventDate "2019.10.18"]
[EventType "swiss"]
[EventCountry "RUS"]
[SourceTitle "playchess.com"]
[Source "ChessBase"]
[SourceQuality "1"]
[TimeControl "900+10"]

1. d4 {[%emt 0:00:00]} d5 {[%emt 0:00:00]} 2. c4 {[%emt 0:00:00]} c6 {[%emt 0:00:00]} 3. cxd5 {[%emt 0:00:00]} cxd5 {[%emt 0:00:00]} 4. Bg5 {[%emt 0:00:00]} h6 {[%emt 0:00:08]} 5. Bh4 {[%emt 0:00:02]} Nc6 {[%emt 0:00:08]} 6. Nc3 {[%emt 0:00:08]} Qb6 {[%emt 0:00:06]} 7. Qd2 {[%emt 0:00:29]} e6 {[%emt 0:00:55]} 8. e3 {[%emt 0:00:04]} Be7 {[%emt 0:01:17]} 9. Nf3 {[%emt 0:00:18]} Bxh4 {[%emt 0:00:25]} 10. Nxh4 {[%emt 0:00:02]} Nf6 {[%emt 0:00:05]} 11. Bd3 {[%emt 0:01:08]} Bd7 {[%emt 0:00:36]} 12. Rc1 {[%emt 0:00:10]} Na5 {[%emt 0:01:43]} 13. b3 {[%emt 0:00:29]} O-O {[%emt 0:00:14]} 14. O-O {[%emt 0:00:07]} Rac8 {[%emt 0:00:18]} 15. Nf3 {[%emt 0:00:25]} a6 {[%emt 0:03:22]} 16. Ne5 {[%emt 0:00:34]} Bb5 {[%emt 0:00:28]} 17. Nxb5 {[%emt 0:00:22]} axb5 {[%emt 0:00:03]} 18. Qb4 {[%emt 0:00:52]} Nc6 {[%emt 0:01:52]} 19. Qxb5 {[%emt 0:00:31]} Qxb5 {[%emt 0:01:03]} 20. Bxb5 {[%emt 0:00:01]} Nxe5 {[%emt 0:00:01]} 21. dxe5 {[%emt 0:00:02]} Ne4 {[%emt 0:00:04]} 22. Bd7 {[%emt 0:01:05]} Ra8 {[%emt 0:00:09]} 23. Rc2 {[%emt 0:00:35]} b6 {[%emt 0:00:42]} 24. b4 {[%emt 0:00:37]} Rfd8 {[%emt 0:01:20]} 25. Bb5 {[%emt 0:00:25]} Ra3 {[%emt 0:00:02]} 26. Rfc1 {[%emt 0:02:31]} d4 {[%emt 0:00:45]} 27. exd4 {[%emt 0:01:19]} Rxd4 {[%emt 0:00:07]} 28. Rc4 {[%emt 0:00:50]} Rxc4 {[%emt 0:00:33]} 29. Bxc4 {[%emt 0:00:32]} Nd2 {[%emt 0:00:19]} 30. h4 {[%emt 0:01:33]} g5 {[%emt 0:00:32]} 31. hxg5 {[%emt 0:00:05]} hxg5 {[%emt 0:00:01]} 32. Rc2 {[%emt 0:00:16]} Nxc4 {[%emt 0:00:10]} 33. Rxc4 {[%emt 0:00:01]} Rxa2 {[%emt 0:00:01]} 34. Rg4 {[%emt 0:00:52]} Ra1+ {[%emt 0:00:14]} 35. Kh2 {[%emt 0:00:03]} Kf8 {[%emt 0:00:14]} 36. Rxg5 {[%emt 0:00:13]} Rb1 {[%emt 0:00:32]} 37. Rg4 {[%emt 0:00:42]} Ke7 {[%emt 0:00:04]} 38. Rd4 {[%emt 0:00:12]} f6 {[%emt 0:00:27]} 39. exf6+ Kxf6 {[%emt 0:00:02]} 40. f4 {[%emt 0:00:58]} Kf5 {[%emt 0:00:54]} 41. Kg3 {[%emt 0:00:20]} b5 {[%emt 0:00:06]} 42. Kf3 {[%emt 0:00:41]} Rb3+ {[%emt 0:00:03]} 43. Kf2 {[%emt 0:00:10]} Rb2+ {[%emt 0:00:02]} 44. Kg3 {[%emt 0:00:05]} Rb1 {[%emt 0:00:06]} 45. Kh4 {[%emt 0:00:21]} Rh1+ {[%emt 0:00:02]} 46. Kg3 {[%emt 0:00:01]} Rb1 {[%emt 0:00:01]} 47. Kf3 {[%emt 0:00:01]} Rb3+ {[%emt 0:00:02]} 48. Kf2 {[%emt 0:00:02]} Rb2+ {[%emt 0:00:02]} 49. Kg3 {[%emt 0:00:06]} Rb1 {[%emt 0:00:03]} 50. Kf3 {[%emt 0:00:22]} Rb3+ {[%emt 0:00:02]} 51. Kf2 {[%emt 0:00:02]} Rb2+ {[%emt 0:00:04]} 52. Kg3 {[%emt 0:00:04]} Rb1 {[%emt 0:00:03]} 53. Kh3 {[%emt 0:00:28]} Rh1+ {[%emt 0:00:03]} 54. Kg3 {[%emt 0:00:03] Ke5} 1/2-1/2

[Event "RUS-chT Women Rapid 2019"]
[Site "Sochi"]
[Date "2019.10.19"]
[Round "8.7"]
[White "Gritsayeva, Oksana"]
[Black "Ivanova, Anastasia S."]
[Result "0-1"]
[ECO "B53"]
[WhiteElo "2370"]
[BlackElo "1615"]
[Annotator "NA"]
[PlyCount "116"]
[EventDate "2019.10.18"]
[EventType "swiss"]
[EventCountry "RUS"]
[SourceTitle "playchess.com"]
[Source "ChessBase"]
[SourceQuality "1"]
[TimeControl "900+10"]

1. e4 {[%emt 0:00:00]} c5 {[%emt 0:00:00]} 2. Nf3 {[%emt 0:00:00]} d6 {[%emt 0:00:00]} 3. d4 {[%emt 0:00:10]} cxd4 {[%emt 0:00:00]} 4. Qxd4 {[%emt 0:00:02]} Nc6 {[%emt 0:00:00]} 5. Bb5 {[%emt 0:00:02]} Bd7 {[%emt 0:00:00]} 6. Qd3 {[%emt 0:00:14]} g6 {[%emt 0:00:20]} 7. O-O {[%emt 0:00:33]} Bg7 {[%emt 0:00:03]} 8. c4 {[%emt 0:00:27]} Nf6 {[%emt 0:00:23]} 9. Nc3 {[%emt 0:00:02]} O-O {[%emt 0:00:11]} 10. h3 {[%emt 0:00:35]} Rc8 {[%emt 0:00:23]} 11. Bxc6 {[%emt 0:00:46]} Bxc6 {[%emt 0:00:17]} 12. Bd2 {[%emt 0:01:10]} Nd7 {[%emt 0:02:14]} 13. b4 {[%emt 0:00:36]} b6 {[%emt 0:00:41]} 14. Rac1 {[%emt 0:00:18]} Bb7 {[%emt 0:01:17]} 15. Rfe1 {[%emt 0:01:10]} Ba6 {[%emt 0:02:30]} 16. Nd5 {[%emt 0:00:42]} h6 {[%emt 0:01:08]} 17. b5 {[%emt 0:03:15]} Bb7 {[%emt 0:00:23]} 18. Bf4 {[%emt 0:01:09]} Kh7 {[%emt 0:01:49]} 19. Qa3 {[%emt 0:00:56]} Ra8 {[%emt 0:01:07]} 20. Qe3 {[%emt 0:00:52]} Nc5 {[%emt 0:01:33]} 21. Rcd1 {[%emt 0:00:31]} Ne6 {[%emt 0:01:42]} 22. Bg3 {[%emt 0:00:15]} Rc8 {[%emt 0:00:08]} 23. e5 {[%emt 0:00:39]} Rxc4 {[%emt 0:00:46]} 24. exd6 {[%emt 0:00:06]} exd6 {[%emt 0:00:13]} 25. Bxd6 {[%emt 0:00:52]} Re8 {[%emt 0:00:28]} 26. Ne5 {[%emt 0:02:12]} Bxd5 {[%emt 0:01:03]} 27. Rxd5 {[%emt 0:00:03]} Qa8 {[%emt 0:00:11]} 28. Qd2 {[%emt 0:01:10]} Nf4 {[%emt 0:00:13]} 29. Nxc4 {[%emt 0:00:19]} Rxe1+ {[%emt 0:00:14]} 30. Qxe1 {[%emt 0:00:01]} Qxd5 {[%emt 0:00:16]} 31. Bxf4 {[%emt 0:00:02]} Qxc4 {[%emt 0:00:01]} 32. Bg3 {[%emt 0:00:38]} Qxa2 {[%emt 0:00:32]} 33. Qe7 {[%emt 0:00:08]} Qb1+ {[%emt 0:00:06]} 34. Kh2 {[%emt 0:00:01]} Qxb5 {[%emt 0:00:05]} 35. Qxa7 {[%emt 0:00:12]} Qb3 {[%emt 0:00:03]} 36. Qc7 {[%emt 0:00:16]} b5 {[%emt 0:00:15]} 37. Be5 {[%emt 0:00:17]} Bxe5+ {[%emt 0:00:05]} 38. Qxe5 {[%emt 0:00:01]} Qc4 {[%emt 0:00:01]} 39. Qf6 {[%emt 0:00:14]} b4 {[%emt 0:00:02]} 40. Qb6 {[%emt 0:00:04]} b3 {[%emt 0:00:02]} 41. g3 {[%emt 0:00:07]} Qc2 {[%emt 0:00:04]} 42. Qa7 {[%emt 0:00:05]} Qf5 {[%emt 0:00:29]} 43. Qb6 {[%emt 0:00:05]} Qe6 {[%emt 0:00:14]} 44. Qb4 {[%emt 0:00:07]} Qd5 {[%emt 0:00:10]} 45. Qc3 {[%emt 0:00:10]} Qb7 {[%emt 0:00:16]} 46. Qb2 {[%emt 0:00:04]} Qf3 {[%emt 0:00:19]} 47. Kg1 {[%emt 0:00:10]} Qd1+ {[%emt 0:00:04]} 48. Kg2 {[%emt 0:00:04]} Qc2 {[%emt 0:00:16]} 49. Qf6 {[%emt 0:00:04]} Qe4+ {[%emt 0:00:09]} 50. Kg1 {[%emt 0:00:07]} Kg8 {[%emt 0:00:13]} 51. Qd8+ {[%emt 0:00:02]} Kg7 {[%emt 0:00:03]} 52. Qb6 {[%emt 0:00:04]} Qe1+ {[%emt 0:00:02]} 53. Kg2 {[%emt 0:00:03]} Qc3 {[%emt 0:00:02]} 54. Qb5 {[%emt 0:00:12]} b2 {[%emt 0:00:08]} 55. h4 {[%emt 0:00:12]} Qc2 {[%emt 0:00:14]} 56. Qe5+ {[%emt 0:00:06]} Kh7 {[%emt 0:00:05]} 57. Qf6 {[%emt 0:00:14]} Qb3 {[%emt 0:00:02]} 58. h5 {[%emt 0:00:17]} b1=Q {[%emt 0:00:08]} 0-1